Cogmind - Beta 15 @@@ ROGUE MODE // 2025.09.04 @ 23:04:48 Player: shapeshifter Result: Destroyed by P-60 Hacker with Shock Rifle Performance ------------- Evolutions (3) 1500 Regions Visited (8) 1600 Robots Destroyed (119) 595 Value Destroyed (5701) 5701 Prototype IDs (4) 80 Alien Tech Used (0) 0 Bonus (2791) 2791 TOTAL SCORE: 12267 Bonus ------- High Alert Combat Kills 734 Follower Combat Kills 657 Entered Garrisons 400 Used RIF Installer 1000 Cogmind --------- Core Integrity 0/700 Matter 95/300 Energy 100/100 System Corruption 16% Temperature Cool (0) Movement Core (1350) Ox26 Location -7/Factory Parts ------- > --- POWER (1) -------- (None) > --- PROPULSION (4) --- (None) > --- UTILITY (4) ------ Huge Storage Unit Relay Coupler [Grunt] (13) > --- WEAPON (4) ------- (None) > --- INVENTORY (25) --- Neutrino Core Armored Huge Wheel Coolant Injector Experimental Sensor Array Improved Utility Shielding Improved Utility Shielding Improved Light Armor Plating Remote Force Field Relay Coupler [Swarmer] (43) Relay Coupler [Brawler] (39) Relay Coupler [Duelist] (27) Relay Coupler [Specialist] (29) Relay Coupler [Hunter] (18) Relay Coupler [Heavy] (17) Relay Coupler [Heavy] (14) Relay Coupler [Behemoth] Advanced Drone Bay (2/2) Remote Datajack Plasma Cutter Peak State ------------ > --- POWER ------------ Improved Deuterium Engine > --- PROPULSION ------- Titanium Leg Improved Carbon-fiber Leg Improved Carbon-fiber Leg Thunder Leg > --- UTILITY ---------- Huge Storage Unit Relay Coupler [Sentry] Relay Coupler [Specialist] Advanced System Restoration Module > --- WEAPON ----------- Autogun Gauss Rifle Remote Datajack Great Maul > --- INVENTORY -------- Improved Deuterium Engine Neutrino Core Experimental Sensor Array Improved Utility Shielding Improved Utility Shielding Hardened Medium Armor Plating Improved Light Armor Plating Advanced Hacking Suite Relay Coupler [NC] Relay Coupler [Swarmer] Relay Coupler [Grunt] Relay Coupler [Brawler] Relay Coupler [Duelist] Relay Coupler [Specialist] Relay Coupler [Hunter] Relay Coupler [Heavy] Relay Coupler [Heavy] Relay Coupler [Behemoth] Advanced Drone Bay Improved EM Pulse Cannon Improved EM Pulse Cannon Heavy Phase Cannon Remote Datajack Plasma Cutter [Rating: 61] Favorites ----------- Power Light Nuclear Core Engine Cooled Ion Engine Power Core Light Nuclear Core Propulsion Titanium Leg Treads Light Treads Leg Titanium Leg Utility Huge Storage Unit Device Seismic Detector Storage Huge Storage Unit Processor Improved Signal Interpreter Hackware Relay Coupler [Sentry] Protection Hardened Medium Armor Plating Weapon Flak Cannon Energy Gun Heavy EM Shotgun Energy Cannon Improved EM Pulse Cannon Ballistic Gun Assault Rifle Ballistic Cannon Flak Cannon Launcher Proton Missile Launcher Special Weapon Remote Datajack Impact Weapon Great Maul Build | -11 -10 -9 -9 -8 -8 -7 -7 -7 ------- Run | Yrd Mat Mat Min Mat Gar Fac Gar Fac Slots Evolved 6 | . . 2 . 2 . 2 . . Power . | . . . . . . . . . Propulsion 2 | . . 1 . . . 1 . . Utility 2 | . . . . 1 . 1 . . Weapon 2 | . . 1 . 1 . . . . Parts Attached 97 | 7 2 17 1 7 18 8 25 12 Power 9 | 1 . 2 1 . 1 . 3 1 Engine 6 | 1 . 2 1 . . . 1 1 Core 3 | . . . . . 1 . 2 . Reactor . | . . . . . . . . . Propulsion 26 | 2 . 6 . 2 5 3 6 2 Treads 12 | 2 . 6 . 2 2 . . . Leg 14 | . . . . . 3 3 6 2 Wheel . | . . . . . . . . . Hover . | . . . . . . . . . Flight . | . . . . . . . . . Utility 36 | 2 2 3 . 3 6 4 11 5 Device 4 | 1 . . . 1 . 1 1 . Storage 5 | 1 2 1 . . . . . 1 Processor 2 | . . . . . 1 1 . . Hackware 9 | . . . . . . . 6 3 Protection 16 | . . 2 . 2 5 2 4 1 Artifact . | . . . . . . . . . Weapon 26 | 2 . 6 . 2 6 1 5 4 Energy Gun 3 | . . 2 . . . . 1 . Energy Cannon 1 | . . . . . . . . 1 Ballistic Gun 12 | 2 . 4 . 2 1 1 2 . Ballistic Cannon 6 | . . . . . 4 . . 2 Launcher 1 | . . . . . . . 1 . Special Weapon 2 | . . . . . . . 1 1 Impact Weapon 1 | . . . . . 1 . . . Slashing Weapon . | . . . . . . . . . Piercing Weapon . | . . . . . . . . . Special Melee Weapon . | . . . . . . . . . Unidentified Prototypes 4 | . . 2 . . . 2 . . Parts Lost 50 | . . 7 1 . 13 . 12 17 Power 5 | . . 1 . . 1 . 1 2 Propulsion 14 | . . 2 . . 3 . 3 6 Utility 13 | . . 1 1 . 4 . 5 2 Weapon 18 | . . 3 . . 5 . 3 7 Highest Loss Streak 8 | . . 3 1 . 4 . 7 8 To Critical Strikes 1 | . . . . . 1 . . . Average Backups 21 | 3 6 18 25 24 22 24 23 22 Power . | . 1 . . . . . . 1 Propulsion 2 | 1 2 2 4 5 3 1 . . Utility 12 | . 1 6 9 9 13 16 17 15 Weapon 4 | . 2 6 10 8 4 3 3 2 Tool/Special . | . . . . . . . . . Unused Backups 52 | . 1 6 . 3 13 2 13 14 Power 1 | . . . . . . . 1 . Propulsion 4 | . . 2 . . 1 . . 1 Utility 33 | . 1 . . 1 9 1 10 11 Weapon 12 | . . 3 . 2 3 1 2 1 Tool/Special 2 | . . 1 . . . . . 1 Average Slot Usage (%) 94 | . 100 91 98 92 94 99 96 88 Engine 5 | . 14 8 11 9 1 . 2 5 Core 3 | . . . . . 7 7 4 . Treads 11 | . 28 29 33 27 5 . . . Leg 16 | . . . . . 21 30 29 25 Device 2 | . 14 1 . 4 2 5 . 1 Storage 8 | . 14 11 11 9 9 7 7 7 Hackware 3 | . . . . . . . 8 17 Protection 8 | . . 8 9 6 10 9 11 1 Energy Gun 1 | . . . . . . 6 2 . Ballistic Gun 17 | . 28 31 33 36 7 7 11 10 Ballistic Cannon 5 | . . . . . 19 7 . 4 Special Weapon 1 | . . . . . . . 5 5 Impact Weapon 4 | . . . . . 8 7 7 4 Peak Build Rating 61 | 7 8 20 20 25 38 52 61 61 Average Rating 32 | 5 7 14 19 22 32 49 46 51 On Entrance 25 | . 7 8 19 19 25 38 52 61 Naked Turns . | . . . . . . . . . Heaviest Build 120 | 15 50 99 99 100 120 120 120 110 Greatest Support 76 | 40 40 60 60 60 60 71 76 76 Greatest Overweight (x) 32 | . 1 2 1 1 4 1 2 32 Average Overweight (x) 1 | . . . 1 1 1 1 1 1 Largest Inventory Capacity 25 | 8 20 25 25 25 25 25 25 25 Average Capacity 24 | 7 19 23 25 25 25 25 25 25 Most Carried 25 | 6 8 25 25 25 25 25 25 25 Average Carried 21 | 3 6 18 25 24 22 24 23 23 Final Capacity 25 | 8 20 25 25 25 25 25 25 25 Final Carried 25 | 5 8 25 25 24 25 25 25 21 Class Distribution -------------------- 21% | Tank 21% | Bothacker-Tank 18% | Scavenger-Tank 8% | Mutant 6% | Bothacker-Skirmisher 5% | Bothacker-Gunner 4% | Bothacker-Mutant 4% | Gunner 3% | Scavenger-Skirmisher 3% | Scavenger-Gunner Dominant Class ---------------- Mutant | -10/Materials Scavenger-Tank | -9/Materials Scavenger-Tank | -9/Mines Scavenger-Tank | -8/Materials Tank | -8/Garrison Bothacker-Skirmisher | -7/Factory Bothacker-Tank | -7/Garrison Bothacker-Gunner | -7/Factory Resources | -11 -10 -9 -9 -8 -8 -7 -7 -7 ----------- Run | Yrd Mat Mat Min Mat Gar Fac Gar Fac Matter Collected 3984 | 218 47 1120 75 268 845 152 668 591 Remotely . | . . . . . . . . . Salvage Created 4110 | 17 120 1374 84 456 638 115 652 654 Parts 243 | 3 4 86 4 27 43 6 32 38 Haulers Intercepted 3 | . . 1 . 1 . . . 1 Recyclers Shooed 4 | . . 2 . 2 . . . . Parts Field Recycled . | . . . . . . . . . Retrieved Matter . | . . . . . . . . . Parts Self-Destructed . | . . . . . . . . . Prevented . | . . . . . . . . . Kills | -11 -10 -9 -9 -8 -8 -7 -7 -7 ------- Run | Yrd Mat Mat Min Mat Gar Fac Gar Fac Combat Hostiles Destroyed 94 | . 2 27 2 4 28 2 16 13 Melee 4 | . . . . . . . 4 . Guns 45 | . 2 27 2 4 4 . 3 3 Cannons 36 | . . . . . 23 2 3 8 AOE 6 | . . . . . . . 4 2 Classes Destroyed 19 | 1 2 8 . 1 3 . 1 3 Worker 5 | . . 3 . . . 1 . 1 Builder 2 | . . . . . . . . 2 Tunneler 2 | 1 . 1 . . . . . . Hauler 3 | . . 1 . 1 . . . 1 Recycler 3 | . . 2 . 1 . . . . Mechanic 1 | . . . . . . . . 1 Operator 1 | . . 1 . . . . . . Watcher 7 | . 1 3 . 3 . . . . Swarmer 16 | . . 6 . . 9 . 1 . Cutter 5 | . . . . . 2 . 3 . Grunt 35 | . 2 12 2 . 7 1 4 7 Brawler 5 | . . 2 . . 1 . 1 1 Duelist 3 | . . 1 . . . 1 1 . Protector 1 | . . . . . . . . 1 Sentry 16 | . . 6 . 2 5 . 1 2 Demolisher 1 | . . . . . 1 . . . Specialist 2 | . . . . 2 . . . . Hunter 5 | . . . . . 3 . 1 1 Programmer 5 | . . . . . . . 3 2 Guerrilla 1 | . . . . . . . 1 . Best Kill Streak 8 | 1 1 8 2 2 7 3 3 7 Combat Bots Only 7 | . 1 4 2 2 7 2 3 3 Max Kills in Single Turn 2 | 1 1 2 1 1 2 2 2 2 Gunslinging 1 | . . 1 . . . . . . Exploded 2 | . . . . . . . 2 1 Melee 1 | . . . . . . . 1 . Uniques/NPCs Destroyed . | . . . . . . . . . Combat | -11 -10 -9 -9 -8 -8 -7 -7 -7 -------- Run | Yrd Mat Mat Min Mat Gar Fac Gar Fac Hostile Shots Fired 865 | . 6 159 8 62 194 11 175 250 Missed 266 | . 2 49 1 33 57 4 36 84 Hits 599 | . 4 110 7 29 137 7 139 166 Melee 18 | . . 6 . . 2 1 9 . Projectile 581 | . 4 104 7 29 135 6 130 166 AOE 9 | . . . . . 6 . 3 . Critical Strikes 24 | . . 3 1 1 5 . 13 1 Actively Blocked 1 | . . . . . . . 1 . Damage Taken 8776 | . 131 1341 106 368 1997 126 2626 2081 Core 1133 | . 22 125 26 51 208 . 281 420 Absorbed by Shields . | . . . . . . . . . Redirected to Shielding 335 | . . . . 9 116 . 210 . Core Remaining (%) 76 | 100 91 . 62 . 52 . . . Volleys Fired 329 | 7 7 110 6 26 63 10 43 57 Largest 4 | 2 2 3 3 4 4 2 2 4 Hottest 131 | 40 40 66 66 83 111 60 92 131 Shots Fired 828 | 14 14 278 18 104 188 14 68 130 Gun 624 | 14 14 278 18 104 90 10 44 52 Cannon 178 | . . . . . 98 4 10 66 Launcher 5 | . . . . . . . 5 . Special 21 | . . . . . . . 9 12 Kinetic 791 | 14 14 278 18 104 188 14 47 114 Thermal 7 | . . . . . . . 7 . Explosive . | . . . . . . . . . Electromagnetic 9 | . . . . . . . 5 4 Robot Hit Streak 12 | 2 4 12 4 7 10 6 7 6 Robot Miss Streak 16 | 3 2 6 1 2 16 3 3 5 Penetration Max 1 | . . . . . . . . 1 Secondary Targets 6 | . . 5 . 1 . . . . Max Gunslinging Chain 1 | . . 1 . 1 . . . . Shots Hit Robots 509 | 4 9 157 12 58 134 11 49 75 Core Hits 261 | 2 5 64 5 20 93 11 28 33 Critical Kills 1 | . . . . . . . . 1 Critical Parts Destroyed 2 | . . . . . . . 2 . Critical Strikes 11 | . . . . . . . 2 9 Destroy 1 | . . . . . . . . 1 Blast 8 | . . . . . . . . 8 Smash 2 | . . . . . . . 2 . Melee Attacks 51 | . . . . . 28 . 19 4 Impact 51 | . . . . . 28 . 19 4 Slashing . | . . . . . . . . . Piercing . | . . . . . . . . . Sneak Attacks 1 | . . . . . . . 1 . Combat Hostiles . | . . . . . . . . . Follow-up Attacks . | . . . . . . . . . Damage Inflicted 8342 | 65 112 2191 159 646 1834 219 1306 1810 Guns 5061 | 65 112 2191 159 646 626 103 489 670 Cannons 2541 | . . . . . 1104 116 181 1140 Explosions 261 | . . . . . . . 261 . Melee 479 | . . . . . 104 . 375 . Ramming . | . . . . . . . . . Kinetic 7399 | 65 112 2191 159 646 1730 219 538 1739 Thermal 239 | . . . . . . . 239 . Explosive . | . . . . . . . . . Electromagnetic 225 | . . . . . . . 154 71 Impact 479 | . . . . . 104 . 375 . Slashing . | . . . . . . . . . Piercing . | . . . . . . . . . Highest Corruption 19 | . . . . . . . 19 18 Average Corruption 15 | . . . . . . . 17 12 Corruption Purged 10 | . . . . . . . 1 9 Corruption Blocked . | . . . . . . . . . Effects 123 | . . . . . . . 82 41 Message Errors 32 | . . . . . . . 21 11 Matter Fused 20 | . . . . . . . 16 4 Heat Flow Errors 15 | . . . . . . . 10 5 Energy Discharges 14 | . . . . . . . 9 5 Parts Rejected 2 | . . . . . . . 1 1 Parts Fused 3 | . . . . . . . 2 1 Data Loss (minor) 19 | . . . . . . . 12 7 Data Loss (major) 5 | . . . . . . . 3 2 Misfires 5 | . . . . . . . 4 1 Alerts 5 | . . . . . . . 4 1 Weapon Failures 3 | . . . . . . . . 3 Overload Shots . | . . . . . . . . . Overflow Damage 165 | . . . . . 20 . 132 13 Projectiles 17 | . . . . . 4 . . 13 Explosions . | . . . . . . . . . Melee 148 | . . . . . 16 . 132 . Knockbacks 39 | . . . . . 28 1 1 9 Impact 1 | . . . . . . . 1 . Kinetic 34 | . . . . . 24 1 . 9 Secondary 4 | . . . . . 4 . . . Self-Inflicted Damage 239 | . 66 . . . . . 173 . Shots 7 | . 1 . . . . . 6 . Rammed . | . . . . . . . . . Targets Rammed . | . . . . . . . . . Kicked . | . . . . . . . . . Crushed . | . . . . . . . . . Highest Temperature 359 | . 2 15 38 75 263 17 346 359 Average Temperature 83 | . 2 4 21 25 67 9 117 106 Received Heat Transfer 2175 | . 30 432 81 45 504 54 366 663 Effects 3 | . . . . . 1 . 1 1 Shutdowns 1 | . . . . . . . . 1 Energy Bleed 1 | . . . . . 1 . . . Interference 1 | . . . . . . . 1 . Siege Activations . | . . . . . . . . . Martial Activations . | . . . . . . . . . Shielding Activations . | . . . . . . . . . Robots Disrupted . | . . . . . . . . . Combat Hostiles . | . . . . . . . . . Robots Corrupted 2 | . . . . . 1 . 1 . Combat Hostiles 1 | . . . . . 1 . . . Parts Fried 5 | . . . . . 1 . 4 . Impact Corruptions 7 | . . . . . 1 . 6 . Robots Melted 1 | . . . . . . . 1 . Combat Hostiles 1 | . . . . . . . 1 . Parts Melted . | . . . . . . . . . Heat Transferred 272 | . . . . . . . 272 . Parts Sabotaged . | . . . . . . . . . Parts Stolen . | . . . . . . . . . Parts Stripped . | . . . . . . . . . Power Chain Reactions 1 | . . . . . . . 1 . Alert | -11 -10 -9 -9 -8 -8 -7 -7 -7 ------- Run | Yrd Mat Mat Min Mat Gar Fac Gar Fac Maximum Alert Level 5 | . . 1 . . 4 3 5 3 Low Security (%) 35 | 100 100 82 100 100 10 . . . Level 1 8 | . . 17 . . 18 . 3 . Level 2 14 | . . . . . 18 64 23 1 Level 3 25 | . . . . . 32 35 24 98 Level 4 15 | . . . . . 20 . 45 . Level 5 . | . . . . . . . 2 . High Security . | . . . . . . . . . Max Security . | . . . . . . . . . Peak Influence 1646 | 5 65 271 99 42 1577 827 1646 891 Initial 863 | . . . 99 . . 827 373 863 Average 550 | . 15 90 19 8 745 674 1010 784 Influence Increases 4911 | 5 135 772 50 143 1717 76 1513 500 Destroy 0b10 Robot/C 2300 | . 40 540 40 80 640 60 640 260 Destroy 0b10 Robot/NC 120 | 5 5 55 . 25 . 5 . 25 Destroy Leader 350 | . 12 138 10 38 30 10 30 82 Allied During Kill 85 | . . . . . 9 1 71 4 Successful Hack 72 | . 10 9 . . 28 . . 25 Disable Machine 45 | . 30 . . . . . . 15 Anti-Garrison Action 1550 | . . . . . 850 . 700 . Destroy Structure 179 | . 23 . . . 100 . 42 14 Lose Combat Pursuer 210 | . 15 30 . . 60 . 30 75 Influence Decreases 4168 | 5 135 517 305 142 141 1120 400 1403 Entered New Map 1850 | . . . 156 . 1 750 160 783 Time Decay 1628 | 5 135 447 139 142 . 350 . 410 Lost Part 490 | . . 70 10 . 120 . 120 170 Lost Ally 200 | . . . . . 20 20 120 40 Squads Dispatched 9 | . 1 2 . 1 . 1 . 4 Investigation . | . . . . . . . . . Extermination 2 | . . . . . . 1 . 1 Reinforcement 5 | . 1 2 . 1 . . . 1 Assault 2 | . . . . . . . . 2 Garrison . | . . . . . . . . . Intercept . | . . . . . . . . . Searches Triggered . | . . . . . . . . . Construction Impeded 1 | . . . . . . . . 1 Haulers Reinforced . | . . . . . . . . . Active Scanning Responses . | . . . . . . . . . Cargo Convoy Interrupts . | . . . . . . . . . Stealth | -11 -10 -9 -9 -8 -8 -7 -7 -7 --------- Run | Yrd Mat Mat Min Mat Gar Fac Gar Fac Distress Signals 8 | . . 6 . . . . 1 1 Communications Jammed . | . . . . . . . . . Distress Signals . | . . . . . . . . . Times Spotted 157 | . 5 44 2 8 34 2 34 28 Peak Tracking Total 8 | . 2 5 2 2 5 2 8 5 Tactical Retreats 11 | . 1 2 . . 2 . 2 4 Traps | -11 -10 -9 -9 -8 -8 -7 -7 -7 ------- Run | Yrd Mat Mat Min Mat Gar Fac Gar Fac Traps Triggered 22 | . 1 . . . 12 . 8 1 Indirectly . | . . . . . . . . . Trap Hack Attempts . | . . . . . . . . . Triggered . | . . . . . . . . . Disarmed . | . . . . . . . . . Reprogrammed . | . . . . . . . . . Reused . | . . . . . . . . . Traps Extracted . | . . . . . . . . . Installed . | . . . . . . . . . Triggered . | . . . . . . . . . Machines | -11 -10 -9 -9 -8 -8 -7 -7 -7 ---------- Run | Yrd Mat Mat Min Mat Gar Fac Gar Fac Machines Disabled 12 | . 2 . . . 4 . 5 1 Max in Single Turn 2 | . 2 . . . 1 . 1 1 Garrison Relay 9 | . . . . . 4 . 5 . Machines Repaired . | . . . . . . . . . Machines Dismantled . | . . . . . . . . . Machines Sabotaged . | . . . . . . . . . Overloaded Fab Kills . | . . . . . . . . . Hacking | -11 -10 -9 -9 -8 -8 -7 -7 -7 --------- Run | Yrd Mat Mat Min Mat Gar Fac Gar Fac Machines Accessed 16 | . 2 4 . 2 2 2 1 3 Terminals 11 | . 2 4 . . 2 . 1 2 Fabricators 1 | . . . . . . . . 1 Repair Stations . | . . . . . . . . . Recycling Units 1 | . . . . 1 . . . . Scanalyzers 1 | . . . . . . 1 . . Garrison Access 2 | . . . . 1 . 1 . . Total Hacks 39 | . 7 14 . 3 3 2 2 8 Successful 15 | . 2 5 . 1 2 1 . 4 Failed 24 | . 5 9 . 2 1 1 2 4 Catastrophic 5 | . . . . 1 1 1 2 . Database Lockouts . | . . . . . . . . . Manual 26 | . 6 15 . . . . . 5 Terminals 33 | . 7 14 . . 3 . 2 7 Fabricators 1 | . . . . . . . . 1 Repair Stations . | . . . . . . . . . Recycling Units 2 | . . . . 2 . . . . Scanalyzers 1 | . . . . . . 1 . . Garrison Access 2 | . . . . 1 . 1 . . Terminal Hacks 5 | . 1 1 . . 2 . . 1 Emergency Access Points 3 | . 1 . . . 1 . . 1 Zone Layout 1 | . . 1 . . . . . . Patrol Navigation 1 | . . . . . 1 . . . Fabricator Hacks 1 | . . . . . . . . 1 Network Status 1 | . . . . . . . . 1 Repair Station Hacks . | . . . . . . . . . Recycling Unit Hacks . | . . . . . . . . . Scanalyzer . | . . . . . . . . . Garrison Access Hacks 2 | . . . . 1 . 1 . . Unlock Access 2 | . . . . 1 . 1 . . Unauthorized Hacks 7 | . 1 4 . . . . . 2 Terminals 7 | . 1 4 . . . . . 2 Assimilate 1 | . 1 . . . . . . . Botnet 5 | . . 3 . . . . . 2 Skim 1 | . . 1 . . . . . . Fabricators . | . . . . . . . . . Repair Stations . | . . . . . . . . . Recycling Units . | . . . . . . . . . Scanalyzers . | . . . . . . . . . Garrison Access . | . . . . . . . . . Data Cores Recovered . | . . . . . . . . . Used . | . . . . . . . . . Hacking Detections 15 | . 2 4 . 2 2 2 1 2 Full Trace Events 3 | . 1 . . . 1 . 1 . Feedback Events . | . . . . . . . . . Feedback Blocked . | . . . . . . . . . Robot Schematics Acquired . | . . . . . . . . . Robots Built . | . . . . . . . . . Authchips . | . . . . . . . . . Time . | . . . . . . . . . Total Robot Build Rating . | . . . . . . . . . Part Schematics Acquired . | . . . . . . . . . Parts Built . | . . . . . . . . . Authchips . | . . . . . . . . . Time . | . . . . . . . . . Total Part Build Rating . | . . . . . . . . . Parts Repaired . | . . . . . . . . . Time . | . . . . . . . . . Parts Recycled . | . . . . . . . . . Recycled Matter . | . . . . . . . . . Retrieved Matter . | . . . . . . . . . Retrieved Components . | . . . . . . . . . Parts Scanalyzed . | . . . . . . . . . Part Schematics Acquired . | . . . . . . . . . Parts Damaged . | . . . . . . . . . Bothacking | -11 -10 -9 -9 -8 -8 -7 -7 -7 ------------ Run | Yrd Mat Mat Min Mat Gar Fac Gar Fac Used RIF Installer 2 | . . . . . 1 . 1 . Structural Interface 1 | . . . . . . . 1 . Robots Hacked 13 | . . . . . . . 7 6 Non-combat 2 | . . . . . . . . 2 Combat 11 | . . . . . . . 7 4 Robot Hacks Applied 14 | . . . . . . . 7 7 parse_system 1 | . . . . . . . 1 . no_distress 1 | . . . . . . . . 1 overload_power 1 | . . . . . . . . 1 amplify_resonance 3 | . . . . . . . 1 2 go_dormant 1 | . . . . . . . . 1 overwrite_iff 1 | . . . . . . . 1 . formatsys_high 6 | . . . . . . . 4 2 Relay Couplers Released 37 | . . . . . 17 . 20 . Machine Destruction 37 | . . . . . 17 . 20 . Attached 8 | . . . . . . . 6 2 Fabnet Peak Effective % . | . . . . . . . . . Robots Rewired 3 | . . . . . 2 . 1 . Allies Hacked . | . . . . . . . . . Hacks Repelled . | . . . . . . . . . Allies | -11 -10 -9 -9 -8 -8 -7 -7 -7 -------- Run | Yrd Mat Mat Min Mat Gar Fac Gar Fac Total Allies 12 | . . . . . 2 . 8 2 Largest Group 4 | . . . . . 2 1 4 2 Highest-Rated Group 190 | . . . . . 36 21 190 64 Highest-Rated Ally 95 | . . . . . 21 21 95 40 Total Orders . | . . . . . . . . . Ally Attacks 50 | . . . . . 12 3 31 4 Total Damage 1852 | . . . . . 280 93 1310 169 Kills 21 | . . . . . 4 1 16 . Allies Corrupted . | . . . . . . . . . Allies Melted . | . . . . . . . . . Intel | -11 -10 -9 -9 -8 -8 -7 -7 -7 ------- Run | Yrd Mat Mat Min Mat Gar Fac Gar Fac Active Infowar (turns) 2342 | 31 477 337 . 335 534 628 . . Sensors 628 | . . . . . . 628 . . Traps 811 | . . . . 335 476 . . . Seismic 1093 | 31 477 337 . . 248 . . . Robot Analysis Total . | . . . . . . . . . Derelict Logs Recovered . | . . . . . . . . . Drone Launches . | . . . . . . . . . Drone Recoveries . | . . . . . . . . . Exploration | -11 -10 -9 -9 -8 -8 -7 -7 -7 ------------- Run | Yrd Mat Mat Min Mat Gar Fac Gar Fac Turns Passed 10434 | 133 477 1932 625 622 2559 793 2301 992 Spaces Moved 3955 | 80 188 622 252 218 834 369 1030 362 Core 36 | 30 . . . . . . . 6 Treads 1480 | 50 188 622 252 218 150 . . . Legs 2439 | . . . . . 684 369 1030 356 Wheels . | . . . . . . . . . Hover . | . . . . . . . . . Flight . | . . . . . . . . . Fastest Speed 50 | 50 160 160 240 240 200 200 187 183 Average Speed 222 | 118 231 235 240 240 258 200 195 211 Slowest Speed 1650 | 160 240 320 240 240 480 200 265 1650 Overloaded Moves . | . . . . . . . . . Propulsion Burnouts . | . . . . . . . . . Robots Hopped . | . . . . . . . . . Potential Cave-ins . | . . . . . . . . . Cave-ins Triggered 1 | . . . . . . . 1 . Exploration Rate (%) 42 | 5 41 58 54 18 97 10 87 10 Regions Visited 8 Branch Regions 1 Pre-discovered Areas . | . . . . . . . . . Known Exits Taken 2 | . . . . 1 . 1 . . Unknown Exits Taken 4 | 1 1 1 1 . . . . . Scrap Searched 1 | . . . 1 . . . . . Spaces Dug 2 | . . . . . . . . 2 Terrain Destroyed 48 | . 27 . . . . . 7 14 Melee 2 | . . . . . . . . 2 Projectile 12 | . . . . . . . . 12 AOE 34 | . 27 . . . . . 7 . Terrain Rammed . | . . . . . . . . . Walls Destroyed . | . . . . . . . . . Machines Disabled . | . . . . . . . . . Actions | -11 -10 -9 -9 -8 -8 -7 -7 -7 --------- Run | Yrd Mat Mat Min Mat Gar Fac Gar Fac Total 4900 | 104 218 868 260 264 1061 410 1229 486 Wait 157 | . 13 70 . . 16 10 13 35 Move 3948 | 79 187 621 251 217 833 369 1029 362 Hop . | . . . . . . . . . Pick Up 143 | 11 6 37 1 7 32 7 34 8 Fast Attach 10 | 1 . 1 . 2 3 . 3 . Attach 66 | 6 . 11 . 2 16 5 17 9 Detach 1 | . . 1 . . . . . . Swap 39 | . 2 7 1 3 3 4 13 6 Drop 76 | . 3 10 1 7 20 5 25 5 Fire 329 | 7 7 110 6 26 63 10 43 57 Melee 51 | . . . . . 28 . 19 4 Ram . | . . . . . . . . . Kick . | . . . . . . . . . Crush . | . . . . . . . . . Escape Stasis 69 | . . . . . 39 . 30 . Rewire 11 | . . . . . 8 . 3 . Trap . | . . . . . . . . . Miscellaneous . | . . . . . . . . . Route ------- -11/Scrapyard -10/Materials -9/Materials (discovered 4 exits: *Mat x2 / [*Min] / [*Sto]) -9/Mines -8/Materials -8/Garrison (discovered 4 exits: *Fac x3 / [*Mat]) -7/Factory (discovered 2 exits: *Low / Gar) -7/Garrison (discovered 3 exits: *Fac x3) -7/Factory History --------- Turn | Location | Event 6 | -11/Scrapyard | Discovered new exit (range 15) 134 | -11/Scrapyard | Entered Materials 310 | -10/Materials | Build established: Mutant 570 | -10/Materials | Discovered new exit (range 15) 611 | -10/Materials | Entered another Materials area 611 | -9/Materials | Evolved 2 slots: Propulsion x1, Weapon x1 983 | -9/Materials | Lost 3 parts (1p2n) 1228 | -9/Materials | Discovered new exit (range 10) 1253 | -9/Materials | Build established: Tank 1291 | -9/Materials | Discovered new exit (range 10) 2037 | -9/Materials | Build established: Scavenger-Tank 2218 | -9/Materials | Discovered new exit (range 5) 2277 | -9/Materials | Discovered new exit (range 11) 2543 | -9/Materials | Entered Mines 2675 | -9/Mines | Discovered new exit (range 4) 2759 | -9/Mines | Found a damaged Exp. Sensor Array with a note attached 2766 | -9/Mines | Found Prototype Device 3168 | -9/Mines | Entered Materials 3168 | -8/Materials | Evolved 2 slots: Utility x1, Weapon x1 3273 | -8/Materials | Identified exit to Garrison 3790 | -8/Materials | Entered Garrison 3820 | -8/Garrison | Triggered checkpoint 3926 | -8/Garrison | Garrison Relay disabled 4040 | -8/Garrison | Installed Relay Interface Framework 4230 | -8/Garrison | Build established: Scavenger-Skirmisher 4301 | -8/Garrison | Lost 4 parts (1p2n1u) 4308 | -8/Garrison | Destroyed 7 combat bots 4312 | -8/Garrison | Triggered checkpoint 4454 | -8/Garrison | Discovered new exit (range 11) 4506 | -8/Garrison | Triggered checkpoint 4555 | -8/Garrison | Garrison Relay disabled 4608 | -8/Garrison | Build established: Tank 4818 | -8/Garrison | Triggered checkpoint 4850 | -8/Garrison | Triggered checkpoint 4947 | -8/Garrison | Discovered new exit (range 12) 5010 | -8/Garrison | Triggered checkpoint 5064 | -8/Garrison | Garrison Relay disabled 5212 | -8/Garrison | Lost 3 parts (2u1w) 5382 | -8/Garrison | Triggered checkpoint 5418 | -8/Garrison | Discovered new exit (range 5) 5719 | -8/Garrison | Discovered new exit (range 7) 5754 | -8/Garrison | Triggered checkpoint 5836 | -8/Garrison | Garrison Relay disabled 6349 | -8/Garrison | Entered Factory 6349 | -7/Factory | Accompanied by 1 ally 6349 | -7/Factory | Evolved 2 slots: Propulsion x1, Utility x1 6467 | -7/Factory | Discovered new exit (range 3) 6482 | -7/Factory | Identified exit to Lower Caves 6514 | -7/Factory | Identified Exp. Sensor Array 6820 | -7/Factory | Build established: Bothacker-Skirmisher 7142 | -7/Factory | Identified exit to Garrison 7142 | -7/Factory | Entered Garrison 7222 | -7/Garrison | Triggered checkpoint 7276 | -7/Garrison | Garrison Relay disabled 7386 | -7/Garrison | Triggered checkpoint 7448 | -7/Garrison | Build established: Bothacker-Tank 7468 | -7/Garrison | Crushed by falling debris 7488 | -7/Garrison | Discovered new exit (range 15) 7499 | -7/Garrison | Lost 4 parts (1p2u1w) 7521 | -7/Garrison | Found embedded Infiltrators 7625 | -7/Garrison | System corruption reached 10% 7677 | -7/Garrison | Lost 7 parts (3n3u1w) 7970 | -7/Garrison | Triggered checkpoint 8002 | -7/Garrison | Garrison Relay disabled 8020 | -7/Garrison | Garrison Relay disabled 8208 | -7/Garrison | Triggered checkpoint 8234 | -7/Garrison | Triggered checkpoint 8278 | -7/Garrison | Triggered checkpoint 8335 | -7/Garrison | Garrison Relay disabled 8375 | -7/Garrison | Discovered new exit (range 14) 8504 | -7/Garrison | Triggered checkpoint 8578 | -7/Garrison | Triggered checkpoint 8620 | -7/Garrison | Discovered new exit (range 14) 8653 | -7/Garrison | Expanded RIF knowledge: Structural Interface 8739 | -7/Garrison | Garrison Relay disabled 9443 | -7/Garrison | Entered Factory 9443 | -7/Factory | Accompanied by 1 ally 9634 | -7/Factory | Build established: Bothacker-Gunner 9843 | -7/Factory | First assault squad dispatched 10126 | -7/Factory | Core integrity fell below 50% 10217 | -7/Factory | Lost 4 parts (1p1n2w) 10343 | -7/Factory | Lost 8 parts (4n1u3w) 10412 | -7/Factory | Core integrity fell below 20% 10435 | -7/Factory | Destroyed by P-60 Hacker with Shock Rifle Last Messages --------------- 10304_ Y-54 Guardian heat short circuits Flak Gun. 10304_ U-05 Engineer lays Concrete. 10306_ U-05 Engineer builds a Wall. 10308_ Aluminum Leg destroyed. 10310_ U-05 Engineer lays Concrete. 10311_ Y-54 Guardian heat spikes uncontrollably. 10312_ U-05 Engineer lays Concrete. 10312_ Thunder Leg destroyed. 10313_ U-05 Engineer lays Concrete. 10330_ U-05 Engineer builds a Wall. 10338_ U-05 Engineer lays Concrete. 10364_ Acquired 5 matter. 10385_ System corrupted: Component data lost. 10402_ Adv. Hacking Suite destroyed. 10403_ System corrupted: Matter fused (-8). 10408_ Imp. Deuterium Engine destroyed. 10420_ Great Maul destroyed. 10429_ Remote Datajack destroyed. 10431_ System corrupted: Component data lost. Map ----- +----------------------------------------------------+ | ???????? ?????????????# ^ =%% | | ???????? ????????????#####+#+################## | | ????? %?? ???########### #??????#????? | | ?????? ? #??# ^ # """ """ #???????????? | | #######+######### "" """ + """ """ ############# | | #^""" """ # """ """ ## | | %#^"R """ # ## | | % =# """ # """ """ ## | | % = +[""" !!! # """ """ ## | | % [# % !!! # """ """ ## | | #######+### *[# / !! # ???# ###### | | ? # ##################????# #????? | | ??? # = #? ??????????# #????? | | ???" """" # #? ??????????# #????? | | ??????????# % #? ??????????# ###### | | ??????????# #? ??????????# # | | ??????????# #? ] ??????????# # | | ??????????####+### #? ??????????# # | | ????????????? ?# ###+############ # | | ??????????? ?# # | | ??????????? # # | | ???????????? / + | | ????????????? ?# |=* # | | ????????????? ?# ! # | | ???????????? # ###p########### # | | ???????????? # # @ # # | | ???????????? # # ! T + # | | ????????????###### # !% ###### ###### | | ?????????????????# # #????# #????? | | ?????????????????# # #??### ?????? | | ?????????????????# # #??# #### | | ?????????????????# # """" """" #??# | | ?????????????????# # """" """" + | | ?????????????????# # """" """" #??# | | ?????????????????# # """" """" #??# #### | | ??????????????????? # #?????#?????? | | ???????????????????????###########?###???????????? | | ??????????????????????????????????????????######## | | ??????????????????????????????????????????# ] | | ??????????????????????????????????????????# | | ??????????????????????????????????????????# | | ??????????????????????????????????????????# ] | | ??????????????????????????????????????????# | | ??????????????????????????????????????????# | | ??????????????????????????????????????????# ! | | ??????????????????????????????????????????# | | ??????????????????????????????????????????######## | | ?????????????????????????????????????????????????? | | ?????????????????????????????????????????????????? | | ?????????????????????????????????????????????????? | +----------------------------------------------------+ Best States ------------- Heat Dissipation 34 Energy Generation 16 Energy Capacity 290 Matter Stores 300 Matter Capacity 300 Sight Range 16 Robot Scan Range 20 Terrain Scan Density 10 Armor Coverage 675 Resistance: EM 15 Propulsion Shielding 66 Utility Shielding 66 Evasion (%) 50 Recoil Reduction 3 Offensive Hacking 14 Relay Coupler Types 3 Relay Coupler Value 89 Authchip Count 3 Item Schematics ----------------- None Robot Schematics ------------------ None Fabricated ------------ Nothing Repaired ---------- Nothing Alien Tech Used ----------------- None Achievements -------------- None Challenges ------------ None Game ------ Seed BarrageTiamatWeb Manual? 0 Play Time 00:53:05 Cumulative 257.5 hours Start 2025.09.04 @ 14:07:06 End 2025.09.04 @ 23:04:48 Sessions 7 Manual Loads 0 Difficulty Rogue Special Mode None Game No. 380 Rogue 380 Adventurer 0 Explorer 0 Win Type - Total 5 Types 4/0/1/0/0/0/0/0/0/0 Lore% 83 Gallery% 79 Achievement% 61 Wizard Run 0 Options --------- Layout 1 ASCII 0 Keyboard 0 Movement Mouse Keybinds 0 Fullscreen 1 Font 24/Smallcaps Map View 50x40 Zoom Use 0% Tactical HUD 1 Map Filters NONE Filters NONE Steam 1 RUN: 51aadbef-8462-4250-b7cc-3ff9a4df2f0b